{"text_format":"3","workbook":"xlsx","n_sheets":5,"sheets":["ใบแจ้งหนี้","ลูกค้า","ใบแจ้งหนี้ - หลัก","รายละเอียดใบแจ้งหนี้","เกี่ยวกับตัวติดตามใบแจ้งหนี้นี้"],"not_rendered":{"defined_names":8},"read":"whole","date_system":"1900"}

{"sheet":"ใบแจ้งหนี้","index":0,"n_rows":40,"n_cols":7,"rows_kept":40,"merged":[[1,1,1,2],[1,3,1,4],[1,5,1,6],[2,1,2,2],[2,3,2,4],[2,5,2,6],[3,3,3,4],[4,3,4,4],[5,3,5,4],[38,1,38,4],[39,1,39,4]]}
[null,"ชื่อบริษัท"]
[null,"ที่อยู่",null,"P: หมายเลขโทรศัพท์",null,"อีเมล"]
[null,"เมือง รัฐ รหัสไปรษณีย์",null,"F: หมายเลขโทรสาร",null,"เว็บไซต์"]
[null,"เรียกเก็บ:",{"$f":"IFERROR(VLOOKUP(VLOOKUP(rngInvoice,InvoicesMain[],2,FALSE),CustomerList[],3,TRUE),\"\")","v":"Contoso, Ltd"},{"$f":"\"โทรศัพท์: \"&IFERROR(VLOOKUP(VLOOKUP(rngInvoice,InvoicesMain[],2,FALSE),CustomerList[],9,FALSE),\"\")","v":"โทรศัพท์: 432-555-0189"},null,"หมายเลขใบแจ้งหนี้:","3-456-2"]
[null,"ที่อยู่:",{"$f":"IFERROR(IF((VLOOKUP(VLOOKUP(rngInvoice,InvoicesMain[],2,FALSE),CustomerList[],5,FALSE))=\"\",\"\",(VLOOKUP(VLOOKUP(rngInvoice,InvoicesMain[],2,FALSE),CustomerList[],5,FALSE))),\"\")","v":"567 Walnut Lane"},{"$f":"\"โทรสาร:     \"&IFERROR(VLOOKUP(VLOOKUP(rngInvoice,InvoicesMain[],2,FALSE),CustomerList[],11,FALSE),\"\")","v":"โทรสาร:     432-555-0123"},null,"วันที่ใบแจ้งหนี้:",{"$f":"IFERROR(IF(VLOOKUP(rngInvoice,InvoicesMain[],3,FALSE)=\"\",\"\",VLOOKUP(rngInvoice,InvoicesMain[],3,FALSE)),\"\")","v":"2019-08-08"}]
[null,null,{"$f":"IFERROR(VLOOKUP(VLOOKUP(rngInvoice,InvoicesMain[],2,FALSE),CustomerList[],6,FALSE)&\", \"& VLOOKUP(VLOOKUP(G4,InvoicesMain[],2,FALSE),CustomerList[],7,FALSE)&\" \"&VLOOKUP(VLOOKUP(G4,InvoicesMain[],2,FALSE),CustomerList[],8,FALSE),\"\")","v":"เขตบางกอกน้อย, กรุงเทพมหานครฯ 098765"},{"$f":"\"อีเมล: \"&IFERROR(VLOOKUP(VLOOKUP(rngInvoice,InvoicesMain[],2,FALSE),CustomerList[],10,FALSE),\"\")","v":"อีเมล: someone@example.com"}]
[null,{"$f":"\"ใบแจ้งหนี้สำหรับ: \"&IFERROR(VLOOKUP(rngInvoice,InvoicesMain[],4),\"\")","v":"ใบแจ้งหนี้สำหรับ: โครงการ 2"}]
[null,"รายการที่ #","คำอธิบาย","จำนวน","ราคาต่อหน่วย","ส่วนลด","ราคา"]
[null,{"$f":"IFERROR(INDEX(InvoiceDetails[],SMALL(IF(InvoiceDetails[หมายเลขใบแจ้งหนี้]=rngInvoice,ROW(InvoiceDetails[])-ROW(InvoiceDetails[#Headers])), ROW(1:1)), MATCH($B$8, InvoiceDetails[#Headers], 0)),\"\")","v":"Z4567"},{"$f":"IFERROR(INDEX(InvoiceDetails[],SMALL(IF(InvoiceDetails[หมายเลขใบแจ้งหนี้]=rngInvoice,ROW(InvoiceDetails[])-ROW(InvoiceDetails[#Headers])), ROW(1:1)), MATCH($C$8, InvoiceDetails[#Headers], 0)),\"\")","v":"ใบแจ้งหนี้ 3-456-2 ข้อมูล 1"},{"$f":"IFERROR(INDEX(InvoiceDetails[],SMALL(IF(InvoiceDetails[หมายเลขใบแจ้งหนี้]=rngInvoice,ROW(InvoiceDetails[])-ROW(InvoiceDetails[#Headers])), ROW(1:1)), MATCH($D$8, InvoiceDetails[#Headers], 0)),\"\")","v":39},{"$f":"IFERROR(INDEX(InvoiceDetails[],SMALL(IF(InvoiceDetails[หมายเลขใบแจ้งหนี้]=rngInvoice,ROW(InvoiceDetails[])-ROW(InvoiceDetails[#Headers])), ROW(1:1)), MATCH($E$8, InvoiceDetails[#Headers], 0)),\"\")","v":{"v":5,"d":"฿5.00"}},{"$f":"IFERROR(INDEX(InvoiceDetails[],SMALL(IF(InvoiceDetails[หมายเลขใบแจ้งหนี้]=rngInvoice,ROW(InvoiceDetails[])-ROW(InvoiceDetails[#Headers])), ROW(1:1)), MATCH($F$8, InvoiceDetails[#Headers], 0)),\"\")","v":0},{"$f":"IFERROR((D9*E9)-F9,\"\")","v":{"v":195,"d":"฿195.00"}}]
[null,{"$f":"IFERROR(INDEX(InvoiceDetails[],SMALL(IF(InvoiceDetails[หมายเลขใบแจ้งหนี้]=rngInvoice,ROW(InvoiceDetails[])-ROW(InvoiceDetails[#Headers])), ROW(2:2)), MATCH($B$8, InvoiceDetails[#Headers], 0)),\"\")","v":"Z4568"},{"$f":"IFERROR(INDEX(InvoiceDetails[],SMALL(IF(InvoiceDetails[หมายเลขใบแจ้งหนี้]=rngInvoice,ROW(InvoiceDetails[])-ROW(InvoiceDetails[#Headers])), ROW(2:2)), MATCH($C$8, InvoiceDetails[#Headers], 0)),\"\")","v":"ใบแจ้งหนี้ 3-456-2 ข้อมูล 2"},{"$f":"IFERROR(INDEX(InvoiceDetails[],SMALL(IF(InvoiceDetails[หมายเลขใบแจ้งหนี้]=rngInvoice,ROW(InvoiceDetails[])-ROW(InvoiceDetails[#Headers])), ROW(2:2)), MATCH($D$8, InvoiceDetails[#Headers], 0)),\"\")","v":40},{"$f":"IFERROR(INDEX(InvoiceDetails[],SMALL(IF(InvoiceDetails[หมายเลขใบแจ้งหนี้]=rngInvoice,ROW(InvoiceDetails[])-ROW(InvoiceDetails[#Headers])), ROW(2:2)), MATCH($E$8, InvoiceDetails[#Headers], 0)),\"\")","v":{"v":4,"d":"฿4.00"}},{"$f":"IFERROR(INDEX(InvoiceDetails[],SMALL(IF(InvoiceDetails[หมายเลขใบแจ้งหนี้]=rngInvoice,ROW(InvoiceDetails[])-ROW(InvoiceDetails[#Headers])), ROW(2:2)), MATCH($F$8, InvoiceDetails[#Headers], 0)),\"\")","v":{"v":5,"d":"฿5.00"}},{"v":155,"d":"฿155.00"}]
[null,{"$f":"IFERROR(INDEX(InvoiceDetails[],SMALL(IF(InvoiceDetails[หมายเลขใบแจ้งหนี้]=rngInvoice,ROW(InvoiceDetails[])-ROW(InvoiceDetails[#Headers])), ROW(3:3)), MATCH($B$8, InvoiceDetails[#Headers], 0)),\"\")","v":"Z4569"},{"$f":"IFERROR(INDEX(InvoiceDetails[],SMALL(IF(InvoiceDetails[หมายเลขใบแจ้งหนี้]=rngInvoice,ROW(InvoiceDetails[])-ROW(InvoiceDetails[#Headers])), ROW(3:3)), MATCH($C$8, InvoiceDetails[#Headers], 0)),\"\")","v":"ใบแจ้งหนี้ 3-456-2 ข้อมูล 3"},{"$f":"IFERROR(INDEX(InvoiceDetails[],SMALL(IF(InvoiceDetails[หมายเลขใบแจ้งหนี้]=rngInvoice,ROW(InvoiceDetails[])-ROW(InvoiceDetails[#Headers])), ROW(3:3)), MATCH($D$8, InvoiceDetails[#Headers], 0)),\"\")","v":30},{"$f":"IFERROR(INDEX(InvoiceDetails[],SMALL(IF(InvoiceDetails[หมายเลขใบแจ้งหนี้]=rngInvoice,ROW(InvoiceDetails[])-ROW(InvoiceDetails[#Headers])), ROW(3:3)), MATCH($E$8, InvoiceDetails[#Headers], 0)),\"\")","v":{"v":6,"d":"฿6.00"}},{"$f":"IFERROR(INDEX(InvoiceDetails[],SMALL(IF(InvoiceDetails[หมายเลขใบแจ้งหนี้]=rngInvoice,ROW(InvoiceDetails[])-ROW(InvoiceDetails[#Headers])), ROW(3:3)), MATCH($F$8, InvoiceDetails[#Headers], 0)),\"\")","v":{"v":7,"d":"฿7.00"}},{"v":173,"d":"฿173.00"}]
[null,{"$f":"IFERROR(INDEX(InvoiceDetails[],SMALL(IF(InvoiceDetails[หมายเลขใบแจ้งหนี้]=rngInvoice,ROW(InvoiceDetails[])-ROW(InvoiceDetails[#Headers])), ROW(4:4)), MATCH($B$8, InvoiceDetails[#Headers], 0)),\"\")","v":"Z4570"},{"$f":"IFERROR(INDEX(InvoiceDetails[],SMALL(IF(InvoiceDetails[หมายเลขใบแจ้งหนี้]=rngInvoice,ROW(InvoiceDetails[])-ROW(InvoiceDetails[#Headers])), ROW(4:4)), MATCH($C$8, InvoiceDetails[#Headers], 0)),\"\")","v":"ใบแจ้งหนี้ 3-456-2 ข้อมูล 4"},{"$f":"IFERROR(INDEX(InvoiceDetails[],SMALL(IF(InvoiceDetails[หมายเลขใบแจ้งหนี้]=rngInvoice,ROW(InvoiceDetails[])-ROW(InvoiceDetails[#Headers])), ROW(4:4)), MATCH($D$8, InvoiceDetails[#Headers], 0)),\"\")","v":40},{"$f":"IFERROR(INDEX(InvoiceDetails[],SMALL(IF(InvoiceDetails[หมายเลขใบแจ้งหนี้]=rngInvoice,ROW(InvoiceDetails[])-ROW(InvoiceDetails[#Headers])), ROW(4:4)), MATCH($E$8, InvoiceDetails[#Headers], 0)),\"\")","v":{"v":7,"d":"฿7.00"}},{"$f":"IFERROR(INDEX(InvoiceDetails[],SMALL(IF(InvoiceDetails[หมายเลขใบแจ้งหนี้]=rngInvoice,ROW(InvoiceDetails[])-ROW(InvoiceDetails[#Headers])), ROW(4:4)), MATCH($F$8, InvoiceDetails[#Headers], 0)),\"\")","v":0},{"v":280,"d":"฿280.00"}]
[null,{"$f":"IFERROR(INDEX(InvoiceDetails[],SMALL(IF(InvoiceDetails[หมายเลขใบแจ้งหนี้]=rngInvoice,ROW(InvoiceDetails[])-ROW(InvoiceDetails[#Headers])), ROW(5:5)), MATCH($B$8, InvoiceDetails[#Headers], 0)),\"\")","v":"Z4571"},{"$f":"IFERROR(INDEX(InvoiceDetails[],SMALL(IF(InvoiceDetails[หมายเลขใบแจ้งหนี้]=rngInvoice,ROW(InvoiceDetails[])-ROW(InvoiceDetails[#Headers])), ROW(5:5)), MATCH($C$8, InvoiceDetails[#Headers], 0)),\"\")","v":"ใบแจ้งหนี้ 3-456-2 ข้อมูล 5"},{"$f":"IFERROR(INDEX(InvoiceDetails[],SMALL(IF(InvoiceDetails[หมายเลขใบแจ้งหนี้]=rngInvoice,ROW(InvoiceDetails[])-ROW(InvoiceDetails[#Headers])), ROW(5:5)), MATCH($D$8, InvoiceDetails[#Headers], 0)),\"\")","v":10},{"$f":"IFERROR(INDEX(InvoiceDetails[],SMALL(IF(InvoiceDetails[หมายเลขใบแจ้งหนี้]=rngInvoice,ROW(InvoiceDetails[])-ROW(InvoiceDetails[#Headers])), ROW(5:5)), MATCH($E$8, InvoiceDetails[#Headers], 0)),\"\")","v":{"v":4,"d":"฿4.00"}},{"$f":"IFERROR(INDEX(InvoiceDetails[],SMALL(IF(InvoiceDetails[หมายเลขใบแจ้งหนี้]=rngInvoice,ROW(InvoiceDetails[])-ROW(InvoiceDetails[#Headers])), ROW(5:5)), MATCH($F$8, InvoiceDetails[#Headers], 0)),\"\")","v":0},{"v":40,"d":"฿40.00"}]
[null,{"$f":"IFERROR(INDEX(InvoiceDetails[],SMALL(IF(InvoiceDetails[หมายเลขใบแจ้งหนี้]=rngInvoice,ROW(InvoiceDetails[])-ROW(InvoiceDetails[#Headers])), ROW(6:6)), MATCH($B$8, InvoiceDetails[#Headers], 0)),\"\")","v":"Z4572"},{"$f":"IFERROR(INDEX(InvoiceDetails[],SMALL(IF(InvoiceDetails[หมายเลขใบแจ้งหนี้]=rngInvoice,ROW(InvoiceDetails[])-ROW(InvoiceDetails[#Headers])), ROW(6:6)), MATCH($C$8, InvoiceDetails[#Headers], 0)),\"\")","v":"ใบแจ้งหนี้ 3-456-2 ข้อมูล 6"},{"$f":"IFERROR(INDEX(InvoiceDetails[],SMALL(IF(InvoiceDetails[หมายเลขใบแจ้งหนี้]=rngInvoice,ROW(InvoiceDetails[])-ROW(InvoiceDetails[#Headers])), ROW(6:6)), MATCH($D$8, InvoiceDetails[#Headers], 0)),\"\")","v":5},{"$f":"IFERROR(INDEX(InvoiceDetails[],SMALL(IF(InvoiceDetails[หมายเลขใบแจ้งหนี้]=rngInvoice,ROW(InvoiceDetails[])-ROW(InvoiceDetails[#Headers])), ROW(6:6)), MATCH($E$8, InvoiceDetails[#Headers], 0)),\"\")","v":{"v":8,"d":"฿8.00"}},{"$f":"IFERROR(INDEX(InvoiceDetails[],SMALL(IF(InvoiceDetails[หมายเลขใบแจ้งหนี้]=rngInvoice,ROW(InvoiceDetails[])-ROW(InvoiceDetails[#Headers])), ROW(6:6)), MATCH($F$8, InvoiceDetails[#Headers], 0)),\"\")","v":0},{"v":40,"d":"฿40.00"}]
[null,{"$f":"IFERROR(INDEX(InvoiceDetails[],SMALL(IF(InvoiceDetails[หมายเลขใบแจ้งหนี้]=rngInvoice,ROW(InvoiceDetails[])-ROW(InvoiceDetails[#Headers])), ROW(7:7)), MATCH($B$8, InvoiceDetails[#Headers], 0)),\"\")","v":"Z4573"},{"$f":"IFERROR(INDEX(InvoiceDetails[],SMALL(IF(InvoiceDetails[หมายเลขใบแจ้งหนี้]=rngInvoice,ROW(InvoiceDetails[])-ROW(InvoiceDetails[#Headers])), ROW(7:7)), MATCH($C$8, InvoiceDetails[#Headers], 0)),\"\")","v":"ใบแจ้งหนี้ 3-456-2 ข้อมูล 7"},{"$f":"IFERROR(INDEX(InvoiceDetails[],SMALL(IF(InvoiceDetails[หมายเลขใบแจ้งหนี้]=rngInvoice,ROW(InvoiceDetails[])-ROW(InvoiceDetails[#Headers])), ROW(7:7)), MATCH($D$8, InvoiceDetails[#Headers], 0)),\"\")","v":70},{"$f":"IFERROR(INDEX(InvoiceDetails[],SMALL(IF(InvoiceDetails[หมายเลขใบแจ้งหนี้]=rngInvoice,ROW(InvoiceDetails[])-ROW(InvoiceDetails[#Headers])), ROW(7:7)), MATCH($E$8, InvoiceDetails[#Headers], 0)),\"\")","v":{"v":6,"d":"฿6.00"}},{"$f":"IFERROR(INDEX(InvoiceDetails[],SMALL(IF(InvoiceDetails[หมายเลขใบแจ้งหนี้]=rngInvoice,ROW(InvoiceDetails[])-ROW(InvoiceDetails[#Headers])), ROW(7:7)), MATCH($F$8, InvoiceDetails[#Headers], 0)),\"\")","v":0},{"v":420,"d":"฿420.00"}]
[null,{"$f":"IFERROR(INDEX(InvoiceDetails[],SMALL(IF(InvoiceDetails[หมายเลขใบแจ้งหนี้]=rngInvoice,ROW(InvoiceDetails[])-ROW(InvoiceDetails[#Headers])), ROW(8:8)), MATCH($B$8, InvoiceDetails[#Headers], 0)),\"\")","v":"Z4574"},{"$f":"IFERROR(INDEX(InvoiceDetails[],SMALL(IF(InvoiceDetails[หมายเลขใบแจ้งหนี้]=rngInvoice,ROW(InvoiceDetails[])-ROW(InvoiceDetails[#Headers])), ROW(8:8)), MATCH($C$8, InvoiceDetails[#Headers], 0)),\"\")","v":"ใบแจ้งหนี้ 3-456-2 ข้อมูล 8"},{"$f":"IFERROR(INDEX(InvoiceDetails[],SMALL(IF(InvoiceDetails[หมายเลขใบแจ้งหนี้]=rngInvoice,ROW(InvoiceDetails[])-ROW(InvoiceDetails[#Headers])), ROW(8:8)), MATCH($D$8, InvoiceDetails[#Headers], 0)),\"\")","v":25},{"$f":"IFERROR(INDEX(InvoiceDetails[],SMALL(IF(InvoiceDetails[หมายเลขใบแจ้งหนี้]=rngInvoice,ROW(InvoiceDetails[])-ROW(InvoiceDetails[#Headers])), ROW(8:8)), MATCH($E$8, InvoiceDetails[#Headers], 0)),\"\")","v":{"v":4,"d":"฿4.00"}},{"$f":"IFERROR(INDEX(InvoiceDetails[],SMALL(IF(InvoiceDetails[หมายเลขใบแจ้งหนี้]=rngInvoice,ROW(InvoiceDetails[])-ROW(InvoiceDetails[#Headers])), ROW(8:8)), MATCH($F$8, InvoiceDetails[#Headers], 0)),\"\")","v":0},{"v":100,"d":"฿100.00"}]
[null,{"$f":"IFERROR(INDEX(InvoiceDetails[],SMALL(IF(InvoiceDetails[หมายเลขใบแจ้งหนี้]=rngInvoice,ROW(InvoiceDetails[])-ROW(InvoiceDetails[#Headers])), ROW(9:9)), MATCH($B$8, InvoiceDetails[#Headers], 0)),\"\")","v":"Z4575"},{"$f":"IFERROR(INDEX(InvoiceDetails[],SMALL(IF(InvoiceDetails[หมายเลขใบแจ้งหนี้]=rngInvoice,ROW(InvoiceDetails[])-ROW(InvoiceDetails[#Headers])), ROW(9:9)), MATCH($C$8, InvoiceDetails[#Headers], 0)),\"\")","v":"ใบแจ้งหนี้ 3-456-2 ข้อมูล 9"},{"$f":"IFERROR(INDEX(InvoiceDetails[],SMALL(IF(InvoiceDetails[หมายเลขใบแจ้งหนี้]=rngInvoice,ROW(InvoiceDetails[])-ROW(InvoiceDetails[#Headers])), ROW(9:9)), MATCH($D$8, InvoiceDetails[#Headers], 0)),\"\")","v":5},{"$f":"IFERROR(INDEX(InvoiceDetails[],SMALL(IF(InvoiceDetails[หมายเลขใบแจ้งหนี้]=rngInvoice,ROW(InvoiceDetails[])-ROW(InvoiceDetails[#Headers])), ROW(9:9)), MATCH($E$8, InvoiceDetails[#Headers], 0)),\"\")","v":{"v":7,"d":"฿7.00"}},{"$f":"IFERROR(INDEX(InvoiceDetails[],SMALL(IF(InvoiceDetails[หมายเลขใบแจ้งหนี้]=rngInvoice,ROW(InvoiceDetails[])-ROW(InvoiceDetails[#Headers])), ROW(9:9)), MATCH($F$8, InvoiceDetails[#Headers], 0)),\"\")","v":{"v":3,"d":"฿3.00"}},{"v":32,"d":"฿32.00"}]
[null,{"$f":"IFERROR(INDEX(InvoiceDetails[],SMALL(IF(InvoiceDetails[หมายเลขใบแจ้งหนี้]=rngInvoice,ROW(InvoiceDetails[])-ROW(InvoiceDetails[#Headers])), ROW(10:10)), MATCH($B$8, InvoiceDetails[#Headers], 0)),\"\")","v":"Z4576"},{"$f":"IFERROR(INDEX(InvoiceDetails[],SMALL(IF(InvoiceDetails[หมายเลขใบแจ้งหนี้]=rngInvoice,ROW(InvoiceDetails[])-ROW(InvoiceDetails[#Headers])), ROW(10:10)), MATCH($C$8, InvoiceDetails[#Headers], 0)),\"\")","v":"ใบแจ้งหนี้ 3-456-2 ข้อมูล 10"},{"$f":"IFERROR(INDEX(InvoiceDetails[],SMALL(IF(InvoiceDetails[หมายเลขใบแจ้งหนี้]=rngInvoice,ROW(InvoiceDetails[])-ROW(InvoiceDetails[#Headers])), ROW(10:10)), MATCH($D$8, InvoiceDetails[#Headers], 0)),\"\")","v":80},{"$f":"IFERROR(INDEX(InvoiceDetails[],SMALL(IF(InvoiceDetails[หมายเลขใบแจ้งหนี้]=rngInvoice,ROW(InvoiceDetails[])-ROW(InvoiceDetails[#Headers])), ROW(10:10)), MATCH($E$8, InvoiceDetails[#Headers], 0)),\"\")","v":{"v":1,"d":"฿1.00"}},{"$f":"IFERROR(INDEX(InvoiceDetails[],SMALL(IF(InvoiceDetails[หมายเลขใบแจ้งหนี้]=rngInvoice,ROW(InvoiceDetails[])-ROW(InvoiceDetails[#Headers])), ROW(10:10)), MATCH($F$8, InvoiceDetails[#Headers], 0)),\"\")","v":0},{"v":80,"d":"฿80.00"}]
[null,{"$f":"IFERROR(INDEX(InvoiceDetails[],SMALL(IF(InvoiceDetails[หมายเลขใบแจ้งหนี้]=rngInvoice,ROW(InvoiceDetails[])-ROW(InvoiceDetails[#Headers])), ROW(11:11)), MATCH($B$8, InvoiceDetails[#Headers], 0)),\"\")","v":"Z4577"},{"$f":"IFERROR(INDEX(InvoiceDetails[],SMALL(IF(InvoiceDetails[หมายเลขใบแจ้งหนี้]=rngInvoice,ROW(InvoiceDetails[])-ROW(InvoiceDetails[#Headers])), ROW(11:11)), MATCH($C$8, InvoiceDetails[#Headers], 0)),\"\")","v":"ใบแจ้งหนี้ 3-456-2 ข้อมูล 11"},{"$f":"IFERROR(INDEX(InvoiceDetails[],SMALL(IF(InvoiceDetails[หมายเลขใบแจ้งหนี้]=rngInvoice,ROW(InvoiceDetails[])-ROW(InvoiceDetails[#Headers])), ROW(11:11)), MATCH($D$8, InvoiceDetails[#Headers], 0)),\"\")","v":65},{"$f":"IFERROR(INDEX(InvoiceDetails[],SMALL(IF(InvoiceDetails[หมายเลขใบแจ้งหนี้]=rngInvoice,ROW(InvoiceDetails[])-ROW(InvoiceDetails[#Headers])), ROW(11:11)), MATCH($E$8, InvoiceDetails[#Headers], 0)),\"\")","v":{"v":7,"d":"฿7.00"}},{"$f":"IFERROR(INDEX(InvoiceDetails[],SMALL(IF(InvoiceDetails[หมายเลขใบแจ้งหนี้]=rngInvoice,ROW(InvoiceDetails[])-ROW(InvoiceDetails[#Headers])), ROW(11:11)), MATCH($F$8, InvoiceDetails[#Headers], 0)),\"\")","v":0},{"v":455,"d":"฿455.00"}]
[null,{"$f":"IFERROR(INDEX(InvoiceDetails[],SMALL(IF(InvoiceDetails[หมายเลขใบแจ้งหนี้]=rngInvoice,ROW(InvoiceDetails[])-ROW(InvoiceDetails[#Headers])), ROW(12:12)), MATCH($B$8, InvoiceDetails[#Headers], 0)),\"\")","v":"Z4578"},{"$f":"IFERROR(INDEX(InvoiceDetails[],SMALL(IF(InvoiceDetails[หมายเลขใบแจ้งหนี้]=rngInvoice,ROW(InvoiceDetails[])-ROW(InvoiceDetails[#Headers])), ROW(12:12)), MATCH($C$8, InvoiceDetails[#Headers], 0)),\"\")","v":"ใบแจ้งหนี้ 3-456-2 ข้อมูล 12"},{"$f":"IFERROR(INDEX(InvoiceDetails[],SMALL(IF(InvoiceDetails[หมายเลขใบแจ้งหนี้]=rngInvoice,ROW(InvoiceDetails[])-ROW(InvoiceDetails[#Headers])), ROW(12:12)), MATCH($D$8, InvoiceDetails[#Headers], 0)),\"\")","v":44},{"$f":"IFERROR(INDEX(InvoiceDetails[],SMALL(IF(InvoiceDetails[หมายเลขใบแจ้งหนี้]=rngInvoice,ROW(InvoiceDetails[])-ROW(InvoiceDetails[#Headers])), ROW(12:12)), MATCH($E$8, InvoiceDetails[#Headers], 0)),\"\")","v":{"v":1,"d":"฿1.00"}},{"$f":"IFERROR(INDEX(InvoiceDetails[],SMALL(IF(InvoiceDetails[หมายเลขใบแจ้งหนี้]=rngInvoice,ROW(InvoiceDetails[])-ROW(InvoiceDetails[#Headers])), ROW(12:12)), MATCH($F$8, InvoiceDetails[#Headers], 0)),\"\")","v":0},{"v":44,"d":"฿44.00"}]
[null,{"$f":"IFERROR(INDEX(InvoiceDetails[],SMALL(IF(InvoiceDetails[หมายเลขใบแจ้งหนี้]=rngInvoice,ROW(InvoiceDetails[])-ROW(InvoiceDetails[#Headers])), ROW(13:13)), MATCH($B$8, InvoiceDetails[#Headers], 0)),\"\")","v":""},{"$f":"IFERROR(INDEX(InvoiceDetails[],SMALL(IF(InvoiceDetails[หมายเลขใบแจ้งหนี้]=rngInvoice,ROW(InvoiceDetails[])-ROW(InvoiceDetails[#Headers])), ROW(13:13)), MATCH($C$8, InvoiceDetails[#Headers], 0)),\"\")","v":""},{"$f":"IFERROR(INDEX(InvoiceDetails[],SMALL(IF(InvoiceDetails[หมายเลขใบแจ้งหนี้]=rngInvoice,ROW(InvoiceDetails[])-ROW(InvoiceDetails[#Headers])), ROW(13:13)), MATCH($D$8, InvoiceDetails[#Headers], 0)),\"\")","v":""},{"$f":"IFERROR(INDEX(InvoiceDetails[],SMALL(IF(InvoiceDetails[หมายเลขใบแจ้งหนี้]=rngInvoice,ROW(InvoiceDetails[])-ROW(InvoiceDetails[#Headers])), ROW(13:13)), MATCH($E$8, InvoiceDetails[#Headers], 0)),\"\")","v":""},{"$f":"IFERROR(INDEX(InvoiceDetails[],SMALL(IF(InvoiceDetails[หมายเลขใบแจ้งหนี้]=rngInvoice,ROW(InvoiceDetails[])-ROW(InvoiceDetails[#Headers])), ROW(13:13)), MATCH($F$8, InvoiceDetails[#Headers], 0)),\"\")","v":""},""]
[null,{"$f":"IFERROR(INDEX(InvoiceDetails[],SMALL(IF(InvoiceDetails[หมายเลขใบแจ้งหนี้]=rngInvoice,ROW(InvoiceDetails[])-ROW(InvoiceDetails[#Headers])), ROW(14:14)), MATCH($B$8, InvoiceDetails[#Headers], 0)),\"\")","v":""},{"$f":"IFERROR(INDEX(InvoiceDetails[],SMALL(IF(InvoiceDetails[หมายเลขใบแจ้งหนี้]=rngInvoice,ROW(InvoiceDetails[])-ROW(InvoiceDetails[#Headers])), ROW(14:14)), MATCH($C$8, InvoiceDetails[#Headers], 0)),\"\")","v":""},{"$f":"IFERROR(INDEX(InvoiceDetails[],SMALL(IF(InvoiceDetails[หมายเลขใบแจ้งหนี้]=rngInvoice,ROW(InvoiceDetails[])-ROW(InvoiceDetails[#Headers])), ROW(14:14)), MATCH($D$8, InvoiceDetails[#Headers], 0)),\"\")","v":""},{"$f":"IFERROR(INDEX(InvoiceDetails[],SMALL(IF(InvoiceDetails[หมายเลขใบแจ้งหนี้]=rngInvoice,ROW(InvoiceDetails[])-ROW(InvoiceDetails[#Headers])), ROW(14:14)), MATCH($E$8, InvoiceDetails[#Headers], 0)),\"\")","v":""},{"$f":"IFERROR(INDEX(InvoiceDetails[],SMALL(IF(InvoiceDetails[หมายเลขใบแจ้งหนี้]=rngInvoice,ROW(InvoiceDetails[])-ROW(InvoiceDetails[#Headers])), ROW(14:14)), MATCH($F$8, InvoiceDetails[#Headers], 0)),\"\")","v":""},""]
[null,{"$f":"IFERROR(INDEX(InvoiceDetails[],SMALL(IF(InvoiceDetails[หมายเลขใบแจ้งหนี้]=rngInvoice,ROW(InvoiceDetails[])-ROW(InvoiceDetails[#Headers])), ROW(15:15)), MATCH($B$8, InvoiceDetails[#Headers], 0)),\"\")","v":""},{"$f":"IFERROR(INDEX(InvoiceDetails[],SMALL(IF(InvoiceDetails[หมายเลขใบแจ้งหนี้]=rngInvoice,ROW(InvoiceDetails[])-ROW(InvoiceDetails[#Headers])), ROW(15:15)), MATCH($C$8, InvoiceDetails[#Headers], 0)),\"\")","v":""},{"$f":"IFERROR(INDEX(InvoiceDetails[],SMALL(IF(InvoiceDetails[หมายเลขใบแจ้งหนี้]=rngInvoice,ROW(InvoiceDetails[])-ROW(InvoiceDetails[#Headers])), ROW(15:15)), MATCH($D$8, InvoiceDetails[#Headers], 0)),\"\")","v":""},{"$f":"IFERROR(INDEX(InvoiceDetails[],SMALL(IF(InvoiceDetails[หมายเลขใบแจ้งหนี้]=rngInvoice,ROW(InvoiceDetails[])-ROW(InvoiceDetails[#Headers])), ROW(15:15)), MATCH($E$8, InvoiceDetails[#Headers], 0)),\"\")","v":""},{"$f":"IFERROR(INDEX(InvoiceDetails[],SMALL(IF(InvoiceDetails[หมายเลขใบแจ้งหนี้]=rngInvoice,ROW(InvoiceDetails[])-ROW(InvoiceDetails[#Headers])), ROW(15:15)), MATCH($F$8, InvoiceDetails[#Headers], 0)),\"\")","v":""},""]
[null,{"$f":"IFERROR(INDEX(InvoiceDetails[],SMALL(IF(InvoiceDetails[หมายเลขใบแจ้งหนี้]=rngInvoice,ROW(InvoiceDetails[])-ROW(InvoiceDetails[#Headers])), ROW(16:16)), MATCH($B$8, InvoiceDetails[#Headers], 0)),\"\")","v":""},{"$f":"IFERROR(INDEX(InvoiceDetails[],SMALL(IF(InvoiceDetails[หมายเลขใบแจ้งหนี้]=rngInvoice,ROW(InvoiceDetails[])-ROW(InvoiceDetails[#Headers])), ROW(16:16)), MATCH($C$8, InvoiceDetails[#Headers], 0)),\"\")","v":""},{"$f":"IFERROR(INDEX(InvoiceDetails[],SMALL(IF(InvoiceDetails[หมายเลขใบแจ้งหนี้]=rngInvoice,ROW(InvoiceDetails[])-ROW(InvoiceDetails[#Headers])), ROW(16:16)), MATCH($D$8, InvoiceDetails[#Headers], 0)),\"\")","v":""},{"$f":"IFERROR(INDEX(InvoiceDetails[],SMALL(IF(InvoiceDetails[หมายเลขใบแจ้งหนี้]=rngInvoice,ROW(InvoiceDetails[])-ROW(InvoiceDetails[#Headers])), ROW(16:16)), MATCH($E$8, InvoiceDetails[#Headers], 0)),\"\")","v":""},{"$f":"IFERROR(INDEX(InvoiceDetails[],SMALL(IF(InvoiceDetails[หมายเลขใบแจ้งหนี้]=rngInvoice,ROW(InvoiceDetails[])-ROW(InvoiceDetails[#Headers])), ROW(16:16)), MATCH($F$8, InvoiceDetails[#Headers], 0)),\"\")","v":""},""]
[null,{"$f":"IFERROR(INDEX(InvoiceDetails[],SMALL(IF(InvoiceDetails[หมายเลขใบแจ้งหนี้]=rngInvoice,ROW(InvoiceDetails[])-ROW(InvoiceDetails[#Headers])), ROW(17:17)), MATCH($B$8, InvoiceDetails[#Headers], 0)),\"\")","v":""},{"$f":"IFERROR(INDEX(InvoiceDetails[],SMALL(IF(InvoiceDetails[หมายเลขใบแจ้งหนี้]=rngInvoice,ROW(InvoiceDetails[])-ROW(InvoiceDetails[#Headers])), ROW(17:17)), MATCH($C$8, InvoiceDetails[#Headers], 0)),\"\")","v":""},{"$f":"IFERROR(INDEX(InvoiceDetails[],SMALL(IF(InvoiceDetails[หมายเลขใบแจ้งหนี้]=rngInvoice,ROW(InvoiceDetails[])-ROW(InvoiceDetails[#Headers])), ROW(17:17)), MATCH($D$8, InvoiceDetails[#Headers], 0)),\"\")","v":""},{"$f":"IFERROR(INDEX(InvoiceDetails[],SMALL(IF(InvoiceDetails[หมายเลขใบแจ้งหนี้]=rngInvoice,ROW(InvoiceDetails[])-ROW(InvoiceDetails[#Headers])), ROW(17:17)), MATCH($E$8, InvoiceDetails[#Headers], 0)),\"\")","v":""},{"$f":"IFERROR(INDEX(InvoiceDetails[],SMALL(IF(InvoiceDetails[หมายเลขใบแจ้งหนี้]=rngInvoice,ROW(InvoiceDetails[])-ROW(InvoiceDetails[#Headers])), ROW(17:17)), MATCH($F$8, InvoiceDetails[#Headers], 0)),\"\")","v":""},""]
[null,{"$f":"IFERROR(INDEX(InvoiceDetails[],SMALL(IF(InvoiceDetails[หมายเลขใบแจ้งหนี้]=rngInvoice,ROW(InvoiceDetails[])-ROW(InvoiceDetails[#Headers])), ROW(18:18)), MATCH($B$8, InvoiceDetails[#Headers], 0)),\"\")","v":""},{"$f":"IFERROR(INDEX(InvoiceDetails[],SMALL(IF(InvoiceDetails[หมายเลขใบแจ้งหนี้]=rngInvoice,ROW(InvoiceDetails[])-ROW(InvoiceDetails[#Headers])), ROW(18:18)), MATCH($C$8, InvoiceDetails[#Headers], 0)),\"\")","v":""},{"$f":"IFERROR(INDEX(InvoiceDetails[],SMALL(IF(InvoiceDetails[หมายเลขใบแจ้งหนี้]=rngInvoice,ROW(InvoiceDetails[])-ROW(InvoiceDetails[#Headers])), ROW(18:18)), MATCH($D$8, InvoiceDetails[#Headers], 0)),\"\")","v":""},{"$f":"IFERROR(INDEX(InvoiceDetails[],SMALL(IF(InvoiceDetails[หมายเลขใบแจ้งหนี้]=rngInvoice,ROW(InvoiceDetails[])-ROW(InvoiceDetails[#Headers])), ROW(18:18)), MATCH($E$8, InvoiceDetails[#Headers], 0)),\"\")","v":""},{"$f":"IFERROR(INDEX(InvoiceDetails[],SMALL(IF(InvoiceDetails[หมายเลขใบแจ้งหนี้]=rngInvoice,ROW(InvoiceDetails[])-ROW(InvoiceDetails[#Headers])), ROW(18:18)), MATCH($F$8, InvoiceDetails[#Headers], 0)),\"\")","v":""},""]
[null,{"$f":"IFERROR(INDEX(InvoiceDetails[],SMALL(IF(InvoiceDetails[หมายเลขใบแจ้งหนี้]=rngInvoice,ROW(InvoiceDetails[])-ROW(InvoiceDetails[#Headers])), ROW(19:19)), MATCH($B$8, InvoiceDetails[#Headers], 0)),\"\")","v":""},{"$f":"IFERROR(INDEX(InvoiceDetails[],SMALL(IF(InvoiceDetails[หมายเลขใบแจ้งหนี้]=rngInvoice,ROW(InvoiceDetails[])-ROW(InvoiceDetails[#Headers])), ROW(19:19)), MATCH($C$8, InvoiceDetails[#Headers], 0)),\"\")","v":""},{"$f":"IFERROR(INDEX(InvoiceDetails[],SMALL(IF(InvoiceDetails[หมายเลขใบแจ้งหนี้]=rngInvoice,ROW(InvoiceDetails[])-ROW(InvoiceDetails[#Headers])), ROW(19:19)), MATCH($D$8, InvoiceDetails[#Headers], 0)),\"\")","v":""},{"$f":"IFERROR(INDEX(InvoiceDetails[],SMALL(IF(InvoiceDetails[หมายเลขใบแจ้งหนี้]=rngInvoice,ROW(InvoiceDetails[])-ROW(InvoiceDetails[#Headers])), ROW(19:19)), MATCH($E$8, InvoiceDetails[#Headers], 0)),\"\")","v":""},{"$f":"IFERROR(INDEX(InvoiceDetails[],SMALL(IF(InvoiceDetails[หมายเลขใบแจ้งหนี้]=rngInvoice,ROW(InvoiceDetails[])-ROW(InvoiceDetails[#Headers])), ROW(19:19)), MATCH($F$8, InvoiceDetails[#Headers], 0)),\"\")","v":""},""]
[null,{"$f":"IFERROR(INDEX(InvoiceDetails[],SMALL(IF(InvoiceDetails[หมายเลขใบแจ้งหนี้]=rngInvoice,ROW(InvoiceDetails[])-ROW(InvoiceDetails[#Headers])), ROW(20:20)), MATCH($B$8, InvoiceDetails[#Headers], 0)),\"\")","v":""},{"$f":"IFERROR(INDEX(InvoiceDetails[],SMALL(IF(InvoiceDetails[หมายเลขใบแจ้งหนี้]=rngInvoice,ROW(InvoiceDetails[])-ROW(InvoiceDetails[#Headers])), ROW(20:20)), MATCH($C$8, InvoiceDetails[#Headers], 0)),\"\")","v":""},{"$f":"IFERROR(INDEX(InvoiceDetails[],SMALL(IF(InvoiceDetails[หมายเลขใบแจ้งหนี้]=rngInvoice,ROW(InvoiceDetails[])-ROW(InvoiceDetails[#Headers])), ROW(20:20)), MATCH($D$8, InvoiceDetails[#Headers], 0)),\"\")","v":""},{"$f":"IFERROR(INDEX(InvoiceDetails[],SMALL(IF(InvoiceDetails[หมายเลขใบแจ้งหนี้]=rngInvoice,ROW(InvoiceDetails[])-ROW(InvoiceDetails[#Headers])), ROW(20:20)), MATCH($E$8, InvoiceDetails[#Headers], 0)),\"\")","v":""},{"$f":"IFERROR(INDEX(InvoiceDetails[],SMALL(IF(InvoiceDetails[หมายเลขใบแจ้งหนี้]=rngInvoice,ROW(InvoiceDetails[])-ROW(InvoiceDetails[#Headers])), ROW(20:20)), MATCH($F$8, InvoiceDetails[#Headers], 0)),\"\")","v":""},""]
[null,{"$f":"IFERROR(INDEX(InvoiceDetails[],SMALL(IF(InvoiceDetails[หมายเลขใบแจ้งหนี้]=rngInvoice,ROW(InvoiceDetails[])-ROW(InvoiceDetails[#Headers])), ROW(21:21)), MATCH($B$8, InvoiceDetails[#Headers], 0)),\"\")","v":""},{"$f":"IFERROR(INDEX(InvoiceDetails[],SMALL(IF(InvoiceDetails[หมายเลขใบแจ้งหนี้]=rngInvoice,ROW(InvoiceDetails[])-ROW(InvoiceDetails[#Headers])), ROW(21:21)), MATCH($C$8, InvoiceDetails[#Headers], 0)),\"\")","v":""},{"$f":"IFERROR(INDEX(InvoiceDetails[],SMALL(IF(InvoiceDetails[หมายเลขใบแจ้งหนี้]=rngInvoice,ROW(InvoiceDetails[])-ROW(InvoiceDetails[#Headers])), ROW(21:21)), MATCH($D$8, InvoiceDetails[#Headers], 0)),\"\")","v":""},{"$f":"IFERROR(INDEX(InvoiceDetails[],SMALL(IF(InvoiceDetails[หมายเลขใบแจ้งหนี้]=rngInvoice,ROW(InvoiceDetails[])-ROW(InvoiceDetails[#Headers])), ROW(21:21)), MATCH($E$8, InvoiceDetails[#Headers], 0)),\"\")","v":""},{"$f":"IFERROR(INDEX(InvoiceDetails[],SMALL(IF(InvoiceDetails[หมายเลขใบแจ้งหนี้]=rngInvoice,ROW(InvoiceDetails[])-ROW(InvoiceDetails[#Headers])), ROW(21:21)), MATCH($F$8, InvoiceDetails[#Headers], 0)),\"\")","v":""},""]
[null,{"$f":"IFERROR(INDEX(InvoiceDetails[],SMALL(IF(InvoiceDetails[หมายเลขใบแจ้งหนี้]=rngInvoice,ROW(InvoiceDetails[])-ROW(InvoiceDetails[#Headers])), ROW(22:22)), MATCH($B$8, InvoiceDetails[#Headers], 0)),\"\")","v":""},{"$f":"IFERROR(INDEX(InvoiceDetails[],SMALL(IF(InvoiceDetails[หมายเลขใบแจ้งหนี้]=rngInvoice,ROW(InvoiceDetails[])-ROW(InvoiceDetails[#Headers])), ROW(22:22)), MATCH($C$8, InvoiceDetails[#Headers], 0)),\"\")","v":""},{"$f":"IFERROR(INDEX(InvoiceDetails[],SMALL(IF(InvoiceDetails[หมายเลขใบแจ้งหนี้]=rngInvoice,ROW(InvoiceDetails[])-ROW(InvoiceDetails[#Headers])), ROW(22:22)), MATCH($D$8, InvoiceDetails[#Headers], 0)),\"\")","v":""},{"$f":"IFERROR(INDEX(InvoiceDetails[],SMALL(IF(InvoiceDetails[หมายเลขใบแจ้งหนี้]=rngInvoice,ROW(InvoiceDetails[])-ROW(InvoiceDetails[#Headers])), ROW(22:22)), MATCH($E$8, InvoiceDetails[#Headers], 0)),\"\")","v":""},{"$f":"IFERROR(INDEX(InvoiceDetails[],SMALL(IF(InvoiceDetails[หมายเลขใบแจ้งหนี้]=rngInvoice,ROW(InvoiceDetails[])-ROW(InvoiceDetails[#Headers])), ROW(22:22)), MATCH($F$8, InvoiceDetails[#Headers], 0)),\"\")","v":""},""]
[null,{"$f":"IFERROR(INDEX(InvoiceDetails[],SMALL(IF(InvoiceDetails[หมายเลขใบแจ้งหนี้]=rngInvoice,ROW(InvoiceDetails[])-ROW(InvoiceDetails[#Headers])), ROW(23:23)), MATCH($B$8, InvoiceDetails[#Headers], 0)),\"\")","v":""},{"$f":"IFERROR(INDEX(InvoiceDetails[],SMALL(IF(InvoiceDetails[หมายเลขใบแจ้งหนี้]=rngInvoice,ROW(InvoiceDetails[])-ROW(InvoiceDetails[#Headers])), ROW(23:23)), MATCH($C$8, InvoiceDetails[#Headers], 0)),\"\")","v":""},{"$f":"IFERROR(INDEX(InvoiceDetails[],SMALL(IF(InvoiceDetails[หมายเลขใบแจ้งหนี้]=rngInvoice,ROW(InvoiceDetails[])-ROW(InvoiceDetails[#Headers])), ROW(23:23)), MATCH($D$8, InvoiceDetails[#Headers], 0)),\"\")","v":""},{"$f":"IFERROR(INDEX(InvoiceDetails[],SMALL(IF(InvoiceDetails[หมายเลขใบแจ้งหนี้]=rngInvoice,ROW(InvoiceDetails[])-ROW(InvoiceDetails[#Headers])), ROW(23:23)), MATCH($E$8, InvoiceDetails[#Headers], 0)),\"\")","v":""},{"$f":"IFERROR(INDEX(InvoiceDetails[],SMALL(IF(InvoiceDetails[หมายเลขใบแจ้งหนี้]=rngInvoice,ROW(InvoiceDetails[])-ROW(InvoiceDetails[#Headers])), ROW(23:23)), MATCH($F$8, InvoiceDetails[#Headers], 0)),\"\")","v":""},""]
[null,{"$f":"IFERROR(INDEX(InvoiceDetails[],SMALL(IF(InvoiceDetails[หมายเลขใบแจ้งหนี้]=rngInvoice,ROW(InvoiceDetails[])-ROW(InvoiceDetails[#Headers])), ROW(24:24)), MATCH($B$8, InvoiceDetails[#Headers], 0)),\"\")","v":""},{"$f":"IFERROR(INDEX(InvoiceDetails[],SMALL(IF(InvoiceDetails[หมายเลขใบแจ้งหนี้]=rngInvoice,ROW(InvoiceDetails[])-ROW(InvoiceDetails[#Headers])), ROW(24:24)), MATCH($C$8, InvoiceDetails[#Headers], 0)),\"\")","v":""},{"$f":"IFERROR(INDEX(InvoiceDetails[],SMALL(IF(InvoiceDetails[หมายเลขใบแจ้งหนี้]=rngInvoice,ROW(InvoiceDetails[])-ROW(InvoiceDetails[#Headers])), ROW(24:24)), MATCH($D$8, InvoiceDetails[#Headers], 0)),\"\")","v":""},{"$f":"IFERROR(INDEX(InvoiceDetails[],SMALL(IF(InvoiceDetails[หมายเลขใบแจ้งหนี้]=rngInvoice,ROW(InvoiceDetails[])-ROW(InvoiceDetails[#Headers])), ROW(24:24)), MATCH($E$8, InvoiceDetails[#Headers], 0)),\"\")","v":""},{"$f":"IFERROR(INDEX(InvoiceDetails[],SMALL(IF(InvoiceDetails[หมายเลขใบแจ้งหนี้]=rngInvoice,ROW(InvoiceDetails[])-ROW(InvoiceDetails[#Headers])), ROW(24:24)), MATCH($F$8, InvoiceDetails[#Headers], 0)),\"\")","v":""},""]
[null,{"$f":"IFERROR(INDEX(InvoiceDetails[],SMALL(IF(InvoiceDetails[หมายเลขใบแจ้งหนี้]=rngInvoice,ROW(InvoiceDetails[])-ROW(InvoiceDetails[#Headers])), ROW(25:25)), MATCH($B$8, InvoiceDetails[#Headers], 0)),\"\")","v":""},{"$f":"IFERROR(INDEX(InvoiceDetails[],SMALL(IF(InvoiceDetails[หมายเลขใบแจ้งหนี้]=rngInvoice,ROW(InvoiceDetails[])-ROW(InvoiceDetails[#Headers])), ROW(25:25)), MATCH($C$8, InvoiceDetails[#Headers], 0)),\"\")","v":""},{"$f":"IFERROR(INDEX(InvoiceDetails[],SMALL(IF(InvoiceDetails[หมายเลขใบแจ้งหนี้]=rngInvoice,ROW(InvoiceDetails[])-ROW(InvoiceDetails[#Headers])), ROW(25:25)), MATCH($D$8, InvoiceDetails[#Headers], 0)),\"\")","v":""},{"$f":"IFERROR(INDEX(InvoiceDetails[],SMALL(IF(InvoiceDetails[หมายเลขใบแจ้งหนี้]=rngInvoice,ROW(InvoiceDetails[])-ROW(InvoiceDetails[#Headers])), ROW(25:25)), MATCH($E$8, InvoiceDetails[#Headers], 0)),\"\")","v":""},{"$f":"IFERROR(INDEX(InvoiceDetails[],SMALL(IF(InvoiceDetails[หมายเลขใบแจ้งหนี้]=rngInvoice,ROW(InvoiceDetails[])-ROW(InvoiceDetails[#Headers])), ROW(25:25)), MATCH($F$8, InvoiceDetails[#Headers], 0)),\"\")","v":""},""]
[null,"ผลรวม",{"$nulls":4},{"$f":"SUBTOTAL(103,ProjectInvoice[ราคา])","v":25}]
[{"$nulls":5},"ผลรวมย่อยของใบแจ้งหนี้",{"$f":"SUM(ProjectInvoice[ราคา])","v":{"v":2014,"d":"฿2,014.00"}}]
[{"$nulls":5},"อัตราภาษี",{"$f":"VLOOKUP(rngInvoice,InvoicesMain[],5)","v":{"v":0.0875,"d":"8.75%"}}]
[{"$nulls":5},"ภาษีการขาย",{"$f":"G35*G36","v":{"v":176.225,"d":"฿176.23"}}]
[{"$nulls":5},"อื่นๆ",{"$f":"VLOOKUP(rngInvoice,InvoicesMain[],6)","v":0}]
[null,{"$f":"\"สั่งจ่ายเช็คทั้งหมดให้กับ \"&ชื่อบริษัท&\".\"","v":"สั่งจ่ายเช็คทั้งหมดให้กับ ชื่อบริษัท."},{"$nulls":3},"เงินฝากที่ได้รับ",{"$f":"VLOOKUP(rngInvoice,InvoicesMain[],7)","v":0}]
[null,"ผลรวมครบกำหนดใน <#> วัน บัญชีที่เลยกำหนดจะถูกเรียกเก็บค่าบริการ <#>% ต่อเดือน",{"$nulls":3},"ผลรวม",{"$f":"(G35+G37+G38)-G39","v":{"v":2190.225,"d":"฿2,190.23"}}]

{"sheet":"ลูกค้า","index":1,"n_rows":6,"n_cols":12,"rows_kept":6}
[]
[null,null,"ลูกค้า"]
[null,"ค้นหา","หมายเลขบริษัท","ชื่อบริษัท","ชื่อที่ติดต่อ","ที่อยู่","เมือง","จังหวัด","รหัสไปรษณีย์","โทรศัพท์","อีเมล","โทรสาร"]
[null,{"$f":"C4& \" - \"&D4","v":"1 - Tailspin Toys "},1,"Tailspin Toys ","อัครรัตน์ ลีลาพันธ์","99/99 หมู่ 1 ถนนราชดำเนิน","เขตพระนคร","กรุงเทพมหานครฯ","123456","432-555-0178","someone@example.com","432-555-0187"]
[null,"2 - Contoso, Ltd",2,"Contoso, Ltd","ไชยยนต์ ธรรมานนท์","567 Walnut Lane","เขตบางกอกน้อย","กรุงเทพมหานครฯ","098765","432-555-0189","someone@example.com","432-555-0123"]
[null,"ผลรวม",{"$f":"\"ลูกค้าทั้งหมด: \"&SUBTOTAL(103,CustomerList[หมายเลขบริษัท])","v":"ลูกค้าทั้งหมด: 2"}]

{"sheet":"ใบแจ้งหนี้ - หลัก","index":2,"n_rows":6,"n_cols":11,"rows_kept":6}
[]
[null,"ใบแจ้งหนี้"]
[null,"หมายเลขใบแจ้งหนี้","บริษัท","วันที่ในใบแจ้งหนี้","คำอธิบายของโครงการ","อัตราภาษี","อื่นๆ","เงินฝาก","ผลรวมโดยละเอียด","ผลรวมของใบแจ้งหนี้","หมายเหตุ"]
[null,"3-456-1","1 - Tailspin Toys ",{"$f":"TODAY()","v":"2019-07-29"},"โครงการ 1",{"v":0.0875,"d":"8.75%"},{"v":100,"d":"฿100.00"},{"v":100,"d":"฿100.00"},{"$f":"SUMIF(InvoiceDetails[หมายเลขใบแจ้งหนี้],\"=\"&InvoicesMain[[#This Row],[หมายเลขใบแจ้งหนี้]],InvoiceDetails[ผลรวม])","v":{"v":5200,"d":"฿5,200.00"}},{"$f":"(InvoicesMain[[#This Row],[ผลรวมโดยละเอียด]]*(1+InvoicesMain[[#This Row],[อัตราภาษี]]))+InvoicesMain[[#This Row],[อื่นๆ]]-InvoicesMain[[#This Row],[เงินฝาก]]","v":{"v":5654.999999999999,"d":"฿5,655.00"}}]
[null,"3-456-2","2 - Contoso, Ltd",{"$f":"TODAY()+10","v":"2019-08-08"},"โครงการ 2",{"v":0.0875,"d":"8.75%"},null,null,{"$f":"SUMIF(InvoiceDetails[หมายเลขใบแจ้งหนี้],\"=\"&InvoicesMain[[#This Row],[หมายเลขใบแจ้งหนี้]],InvoiceDetails[ผลรวม])","v":{"v":2014,"d":"฿2,014.00"}},{"$f":"(InvoicesMain[[#This Row],[ผลรวมโดยละเอียด]]*(1+InvoicesMain[[#This Row],[อัตราภาษี]]))+InvoicesMain[[#This Row],[อื่นๆ]]-InvoicesMain[[#This Row],[เงินฝาก]]","v":{"v":2190.225,"d":"฿2,190.23"}}]
[null,"ผลรวม",{"$f":"\"ผลรวมใบแจ้งหนี้: \"&SUBTOTAL(103,InvoicesMain[หมายเลขใบแจ้งหนี้])","v":"ผลรวมใบแจ้งหนี้: 2"},{"$nulls":3},{"$f":"SUBTOTAL(109,InvoicesMain[อื่นๆ])","v":{"v":100,"d":"฿100.00"}},{"$f":"SUBTOTAL(109,InvoicesMain[เงินฝาก])","v":{"v":100,"d":"฿100.00"}},{"$f":"SUBTOTAL(109,InvoicesMain[ผลรวมโดยละเอียด])","v":{"v":7214,"d":"฿7,214.00"}},{"$f":"SUBTOTAL(109,InvoicesMain[ผลรวมของใบแจ้งหนี้])","v":{"v":7845.2249999999985,"d":"฿7,845.23"}}]

{"sheet":"รายละเอียดใบแจ้งหนี้","index":3,"n_rows":40,"n_cols":8,"rows_kept":40}
[]
[null,"รายละเอียดใบแจ้งหนี้"]
[null,"คำอธิบาย","หมายเลขใบแจ้งหนี้","รายการที่ #","จำนวน","ราคาต่อหน่วย","ส่วนลด","ผลรวม"]
[null,"ใบแจ้งหนี้ 3-456-1 ข้อมูล 1","3-456-1",1,1,{"v":1,"d":"฿1.00"},{"v":1,"d":"฿1.00"},{"$f":"(InvoiceDetails[[#This Row],[จำนวน]]*InvoiceDetails[[#This Row],[ราคาต่อหน่วย]])-InvoiceDetails[[#This Row],[ส่วนลด]]","v":{"v":0,"d":"฿0.00"}}]
[null,"ใบแจ้งหนี้ 3-456-1 ข้อมูล 2","3-456-1",2,2,{"v":2,"d":"฿2.00"},{"v":2,"d":"฿2.00"},{"$f":"(InvoiceDetails[[#This Row],[จำนวน]]*InvoiceDetails[[#This Row],[ราคาต่อหน่วย]])-InvoiceDetails[[#This Row],[ส่วนลด]]","v":{"v":2,"d":"฿2.00"}}]
[null,"ใบแจ้งหนี้ 3-456-1 ข้อมูล 3","3-456-1",3,3,{"v":3,"d":"฿3.00"},{"v":3,"d":"฿3.00"},{"$f":"(InvoiceDetails[[#This Row],[จำนวน]]*InvoiceDetails[[#This Row],[ราคาต่อหน่วย]])-InvoiceDetails[[#This Row],[ส่วนลด]]","v":{"v":6,"d":"฿6.00"}}]
[null,"ใบแจ้งหนี้ 3-456-1 ข้อมูล 4","3-456-1",4,4,{"v":4,"d":"฿4.00"},{"v":4,"d":"฿4.00"},{"$f":"(InvoiceDetails[[#This Row],[จำนวน]]*InvoiceDetails[[#This Row],[ราคาต่อหน่วย]])-InvoiceDetails[[#This Row],[ส่วนลด]]","v":{"v":12,"d":"฿12.00"}}]
[null,"ใบแจ้งหนี้ 3-456-1 ข้อมูล 5","3-456-1",5,5,{"v":5,"d":"฿5.00"},{"v":5,"d":"฿5.00"},{"$f":"(InvoiceDetails[[#This Row],[จำนวน]]*InvoiceDetails[[#This Row],[ราคาต่อหน่วย]])-InvoiceDetails[[#This Row],[ส่วนลด]]","v":{"v":20,"d":"฿20.00"}}]
[null,"ใบแจ้งหนี้ 3-456-1 ข้อมูล 6","3-456-1",6,6,{"v":6,"d":"฿6.00"},{"v":6,"d":"฿6.00"},{"$f":"(InvoiceDetails[[#This Row],[จำนวน]]*InvoiceDetails[[#This Row],[ราคาต่อหน่วย]])-InvoiceDetails[[#This Row],[ส่วนลด]]","v":{"v":30,"d":"฿30.00"}}]
[null,"ใบแจ้งหนี้ 3-456-1 ข้อมูล 7","3-456-1",7,7,{"v":7,"d":"฿7.00"},{"v":7,"d":"฿7.00"},{"$f":"(InvoiceDetails[[#This Row],[จำนวน]]*InvoiceDetails[[#This Row],[ราคาต่อหน่วย]])-InvoiceDetails[[#This Row],[ส่วนลด]]","v":{"v":42,"d":"฿42.00"}}]
[null,"ใบแจ้งหนี้ 3-456-1 ข้อมูล 8","3-456-1",8,8,{"v":8,"d":"฿8.00"},{"v":8,"d":"฿8.00"},{"$f":"(InvoiceDetails[[#This Row],[จำนวน]]*InvoiceDetails[[#This Row],[ราคาต่อหน่วย]])-InvoiceDetails[[#This Row],[ส่วนลด]]","v":{"v":56,"d":"฿56.00"}}]
[null,"ใบแจ้งหนี้ 3-456-1 ข้อมูล 9","3-456-1",9,9,{"v":9,"d":"฿9.00"},{"v":9,"d":"฿9.00"},{"$f":"(InvoiceDetails[[#This Row],[จำนวน]]*InvoiceDetails[[#This Row],[ราคาต่อหน่วย]])-InvoiceDetails[[#This Row],[ส่วนลด]]","v":{"v":72,"d":"฿72.00"}}]
[null,"ใบแจ้งหนี้ 3-456-1 ข้อมูล 10","3-456-1",10,10,{"v":10,"d":"฿10.00"},{"v":10,"d":"฿10.00"},{"$f":"(InvoiceDetails[[#This Row],[จำนวน]]*InvoiceDetails[[#This Row],[ราคาต่อหน่วย]])-InvoiceDetails[[#This Row],[ส่วนลด]]","v":{"v":90,"d":"฿90.00"}}]
[null,"ใบแจ้งหนี้ 3-456-1 ข้อมูล 11","3-456-1",11,11,{"v":11,"d":"฿11.00"},{"v":11,"d":"฿11.00"},{"$f":"(InvoiceDetails[[#This Row],[จำนวน]]*InvoiceDetails[[#This Row],[ราคาต่อหน่วย]])-InvoiceDetails[[#This Row],[ส่วนลด]]","v":{"v":110,"d":"฿110.00"}}]
[null,"ใบแจ้งหนี้ 3-456-1 ข้อมูล 12","3-456-1",12,12,{"v":12,"d":"฿12.00"},{"v":12,"d":"฿12.00"},{"$f":"(InvoiceDetails[[#This Row],[จำนวน]]*InvoiceDetails[[#This Row],[ราคาต่อหน่วย]])-InvoiceDetails[[#This Row],[ส่วนลด]]","v":{"v":132,"d":"฿132.00"}}]
[null,"ใบแจ้งหนี้ 3-456-1 ข้อมูล 13","3-456-1",13,13,{"v":13,"d":"฿13.00"},{"v":13,"d":"฿13.00"},{"$f":"(InvoiceDetails[[#This Row],[จำนวน]]*InvoiceDetails[[#This Row],[ราคาต่อหน่วย]])-InvoiceDetails[[#This Row],[ส่วนลด]]","v":{"v":156,"d":"฿156.00"}}]
[null,"ใบแจ้งหนี้ 3-456-1 ข้อมูล 14","3-456-1",14,14,{"v":14,"d":"฿14.00"},{"v":14,"d":"฿14.00"},{"$f":"(InvoiceDetails[[#This Row],[จำนวน]]*InvoiceDetails[[#This Row],[ราคาต่อหน่วย]])-InvoiceDetails[[#This Row],[ส่วนลด]]","v":{"v":182,"d":"฿182.00"}}]
[null,"ใบแจ้งหนี้ 3-456-1 ข้อมูล 15","3-456-1",15,15,{"v":15,"d":"฿15.00"},{"v":15,"d":"฿15.00"},{"$f":"(InvoiceDetails[[#This Row],[จำนวน]]*InvoiceDetails[[#This Row],[ราคาต่อหน่วย]])-InvoiceDetails[[#This Row],[ส่วนลด]]","v":{"v":210,"d":"฿210.00"}}]
[null,"ใบแจ้งหนี้ 3-456-1 ข้อมูล 16","3-456-1",16,16,{"v":16,"d":"฿16.00"},{"v":16,"d":"฿16.00"},{"$f":"(InvoiceDetails[[#This Row],[จำนวน]]*InvoiceDetails[[#This Row],[ราคาต่อหน่วย]])-InvoiceDetails[[#This Row],[ส่วนลด]]","v":{"v":240,"d":"฿240.00"}}]
[null,"ใบแจ้งหนี้ 3-456-1 ข้อมูล 17","3-456-1",17,17,{"v":17,"d":"฿17.00"},{"v":17,"d":"฿17.00"},{"$f":"(InvoiceDetails[[#This Row],[จำนวน]]*InvoiceDetails[[#This Row],[ราคาต่อหน่วย]])-InvoiceDetails[[#This Row],[ส่วนลด]]","v":{"v":272,"d":"฿272.00"}}]
[null,"ใบแจ้งหนี้ 3-456-1 ข้อมูล 18","3-456-1",18,18,{"v":18,"d":"฿18.00"},{"v":18,"d":"฿18.00"},{"$f":"(InvoiceDetails[[#This Row],[จำนวน]]*InvoiceDetails[[#This Row],[ราคาต่อหน่วย]])-InvoiceDetails[[#This Row],[ส่วนลด]]","v":{"v":306,"d":"฿306.00"}}]
[null,"ใบแจ้งหนี้ 3-456-1 ข้อมูล 19","3-456-1",19,19,{"v":19,"d":"฿19.00"},{"v":19,"d":"฿19.00"},{"$f":"(InvoiceDetails[[#This Row],[จำนวน]]*InvoiceDetails[[#This Row],[ราคาต่อหน่วย]])-InvoiceDetails[[#This Row],[ส่วนลด]]","v":{"v":342,"d":"฿342.00"}}]
[null,"ใบแจ้งหนี้ 3-456-1 ข้อมูล 20","3-456-1",20,20,{"v":20,"d":"฿20.00"},{"v":20,"d":"฿20.00"},{"$f":"(InvoiceDetails[[#This Row],[จำนวน]]*InvoiceDetails[[#This Row],[ราคาต่อหน่วย]])-InvoiceDetails[[#This Row],[ส่วนลด]]","v":{"v":380,"d":"฿380.00"}}]
[null,"ใบแจ้งหนี้ 3-456-1 ข้อมูล 21","3-456-1",21,21,{"v":21,"d":"฿21.00"},{"v":21,"d":"฿21.00"},{"$f":"(InvoiceDetails[[#This Row],[จำนวน]]*InvoiceDetails[[#This Row],[ราคาต่อหน่วย]])-InvoiceDetails[[#This Row],[ส่วนลด]]","v":{"v":420,"d":"฿420.00"}}]
[null,"ใบแจ้งหนี้ 3-456-1 ข้อมูล 22","3-456-1",22,22,{"v":22,"d":"฿22.00"},{"v":22,"d":"฿22.00"},{"$f":"(InvoiceDetails[[#This Row],[จำนวน]]*InvoiceDetails[[#This Row],[ราคาต่อหน่วย]])-InvoiceDetails[[#This Row],[ส่วนลด]]","v":{"v":462,"d":"฿462.00"}}]
[null,"ใบแจ้งหนี้ 3-456-1 ข้อมูล 23","3-456-1",23,23,{"v":23,"d":"฿23.00"},{"v":23,"d":"฿23.00"},{"$f":"(InvoiceDetails[[#This Row],[จำนวน]]*InvoiceDetails[[#This Row],[ราคาต่อหน่วย]])-InvoiceDetails[[#This Row],[ส่วนลด]]","v":{"v":506,"d":"฿506.00"}}]
[null,"ใบแจ้งหนี้ 3-456-1 ข้อมูล 24","3-456-1",24,24,{"v":24,"d":"฿24.00"},{"v":24,"d":"฿24.00"},{"$f":"(InvoiceDetails[[#This Row],[จำนวน]]*InvoiceDetails[[#This Row],[ราคาต่อหน่วย]])-InvoiceDetails[[#This Row],[ส่วนลด]]","v":{"v":552,"d":"฿552.00"}}]
[null,"ใบแจ้งหนี้ 3-456-1 ข้อมูล 25","3-456-1",25,25,{"v":25,"d":"฿25.00"},{"v":25,"d":"฿25.00"},{"$f":"(InvoiceDetails[[#This Row],[จำนวน]]*InvoiceDetails[[#This Row],[ราคาต่อหน่วย]])-InvoiceDetails[[#This Row],[ส่วนลด]]","v":{"v":600,"d":"฿600.00"}}]
[null,"ใบแจ้งหนี้ 3-456-2 ข้อมูล 1","3-456-2","Z4567",39,{"v":5,"d":"฿5.00"},null,{"$f":"(InvoiceDetails[[#This Row],[จำนวน]]*InvoiceDetails[[#This Row],[ราคาต่อหน่วย]])-InvoiceDetails[[#This Row],[ส่วนลด]]","v":{"v":195,"d":"฿195.00"}}]
[null,"ใบแจ้งหนี้ 3-456-2 ข้อมูล 2","3-456-2","Z4568",40,{"v":4,"d":"฿4.00"},{"v":5,"d":"฿5.00"},{"$f":"(InvoiceDetails[[#This Row],[จำนวน]]*InvoiceDetails[[#This Row],[ราคาต่อหน่วย]])-InvoiceDetails[[#This Row],[ส่วนลด]]","v":{"v":155,"d":"฿155.00"}}]
[null,"ใบแจ้งหนี้ 3-456-2 ข้อมูล 3","3-456-2","Z4569",30,{"v":6,"d":"฿6.00"},{"v":7,"d":"฿7.00"},{"$f":"(InvoiceDetails[[#This Row],[จำนวน]]*InvoiceDetails[[#This Row],[ราคาต่อหน่วย]])-InvoiceDetails[[#This Row],[ส่วนลด]]","v":{"v":173,"d":"฿173.00"}}]
[null,"ใบแจ้งหนี้ 3-456-2 ข้อมูล 4","3-456-2","Z4570",40,{"v":7,"d":"฿7.00"},null,{"$f":"(InvoiceDetails[[#This Row],[จำนวน]]*InvoiceDetails[[#This Row],[ราคาต่อหน่วย]])-InvoiceDetails[[#This Row],[ส่วนลด]]","v":{"v":280,"d":"฿280.00"}}]
[null,"ใบแจ้งหนี้ 3-456-2 ข้อมูล 5","3-456-2","Z4571",10,{"v":4,"d":"฿4.00"},null,{"$f":"(InvoiceDetails[[#This Row],[จำนวน]]*InvoiceDetails[[#This Row],[ราคาต่อหน่วย]])-InvoiceDetails[[#This Row],[ส่วนลด]]","v":{"v":40,"d":"฿40.00"}}]
[null,"ใบแจ้งหนี้ 3-456-2 ข้อมูล 6","3-456-2","Z4572",5,{"v":8,"d":"฿8.00"},null,{"$f":"(InvoiceDetails[[#This Row],[จำนวน]]*InvoiceDetails[[#This Row],[ราคาต่อหน่วย]])-InvoiceDetails[[#This Row],[ส่วนลด]]","v":{"v":40,"d":"฿40.00"}}]
[null,"ใบแจ้งหนี้ 3-456-2 ข้อมูล 7","3-456-2","Z4573",70,{"v":6,"d":"฿6.00"},null,{"$f":"(InvoiceDetails[[#This Row],[จำนวน]]*InvoiceDetails[[#This Row],[ราคาต่อหน่วย]])-InvoiceDetails[[#This Row],[ส่วนลด]]","v":{"v":420,"d":"฿420.00"}}]
[null,"ใบแจ้งหนี้ 3-456-2 ข้อมูล 8","3-456-2","Z4574",25,{"v":4,"d":"฿4.00"},null,{"$f":"(InvoiceDetails[[#This Row],[จำนวน]]*InvoiceDetails[[#This Row],[ราคาต่อหน่วย]])-InvoiceDetails[[#This Row],[ส่วนลด]]","v":{"v":100,"d":"฿100.00"}}]
[null,"ใบแจ้งหนี้ 3-456-2 ข้อมูล 9","3-456-2","Z4575",5,{"v":7,"d":"฿7.00"},{"v":3,"d":"฿3.00"},{"$f":"(InvoiceDetails[[#This Row],[จำนวน]]*InvoiceDetails[[#This Row],[ราคาต่อหน่วย]])-InvoiceDetails[[#This Row],[ส่วนลด]]","v":{"v":32,"d":"฿32.00"}}]
[null,"ใบแจ้งหนี้ 3-456-2 ข้อมูล 10","3-456-2","Z4576",80,{"v":1,"d":"฿1.00"},null,{"$f":"(InvoiceDetails[[#This Row],[จำนวน]]*InvoiceDetails[[#This Row],[ราคาต่อหน่วย]])-InvoiceDetails[[#This Row],[ส่วนลด]]","v":{"v":80,"d":"฿80.00"}}]
[null,"ใบแจ้งหนี้ 3-456-2 ข้อมูล 11","3-456-2","Z4577",65,{"v":7,"d":"฿7.00"},null,{"$f":"(InvoiceDetails[[#This Row],[จำนวน]]*InvoiceDetails[[#This Row],[ราคาต่อหน่วย]])-InvoiceDetails[[#This Row],[ส่วนลด]]","v":{"v":455,"d":"฿455.00"}}]
[null,"ใบแจ้งหนี้ 3-456-2 ข้อมูล 12","3-456-2","Z4578",44,{"v":1,"d":"฿1.00"},null,{"$f":"(InvoiceDetails[[#This Row],[จำนวน]]*InvoiceDetails[[#This Row],[ราคาต่อหน่วย]])-InvoiceDetails[[#This Row],[ส่วนลด]]","v":{"v":44,"d":"฿44.00"}}]

{"sheet":"เกี่ยวกับตัวติดตามใบแจ้งหนี้นี้","index":4,"n_rows":40,"n_cols":3,"rows_kept":40,"merged":[[3,1,3,7],[4,1,4,7],[5,1,5,7],[6,1,6,7],[7,2,7,7],[8,2,8,7],[9,2,9,7],[10,2,10,7],[11,2,11,7],[12,1,12,7],[13,2,13,3],[14,2,14,7],[15,1,15,7],[16,2,16,7],[17,2,17,7],[18,2,18,7],[19,2,19,7],[20,2,20,7],[21,2,21,7],[22,1,22,7],[23,1,23,7],[24,2,24,7],[25,2,25,7],[26,2,26,7],[27,2,27,7],[28,1,28,7],[29,1,29,7],[30,2,30,7],[31,2,31,7],[32,2,32,7],[33,2,33,7],[34,2,34,7],[36,2,36,7],[37,2,37,7],[38,2,38,7],[39,2,39,7]]}
[null,"เกี่ยวกับตัวติดตามใบแจ้งหนี้นี้"]
[]
[]
[null,"ตัวติดตามใบแจ้งหนี้ออกแบบมาเพื่อจัดเก็บประวัติลูกค้า ใบแจ้งหนี้ และรายละเอียดใบแจ้งหนี้ เพื่อให้คุณเก็บใบแจ้งหนี้ไว้ได้หลายรายการโดยไม่ต้องสร้างหลายไฟล์ คุณยังสามารถใช้ตัวติดตามใบแจ้งหนี้เพื่อวิเคราะห์ข้อมูลใบแจ้งหนี้ก่อนหน้านี้ได้อีกด้วย ตัวอย่างเช่น คุณสามารถดูใบแจ้งหนี้ทั้งหมดของลูกค้าหนึ่งราย โครงการเฉพาะ หรือดูใบแจ้งหนี้ทั้งหมดของเดือนที่แล้ว ปีที่แล้ว และอื่นๆ"]
[null,"ก่อนที่คุณจะเริ่มต้นใช้งาน ให้ดูข้อมูลตัวอย่างที่มีให้ ในแผ่นงานใบแจ้งหนี้ ให้เลือกเซลล์ทางด้านขวาของหมายเลขใบแจ้งหนี้ (เซลล์ L8) และรายการดรอปดาวน์จะปรากฏขึ้น เลือกลูกศรดรอปดาวน์ แล้วเลือกตัวอย่างใบแจ้งหนี้ โปรดสังเกตการเปลี่ยนแปลงอัตโนมัติของข้อมูลใบแจ้งหนี้เพื่อแสดงใบแจ้งหนี้ที่เลือก ตอนนี้ ให้ดูที่แผ่นงานลูกค้า ใบแจ้งหนี้ - หลัก และรายละเอียดใบแจ้งหนี้ แต่ละแผ่นงานจะมีข้อมูลใบแจ้งหนี้และการเปลี่ยนแปลงที่คุณทำขึ้นจะอัปเดตโดยอัตโนมัติ "]
[null,"ฉันจะเริ่มต้นใช้งานอย่างไร"]
[null,"ปรับเปลี่ยนแผ่นงานใบแจ้งหนี้เพื่อให้แสดงข้อมูลบริษัทของคุณโดยใช้ขั้นตอนต่อไปนี้:"]
[null,"1.","ไปที่แผ่นงาน ใบแจ้งหนี้ จากนั้น บนแท็บ รีวิว ในกลุ่ม ป้องกัน ให้เลือก ยกเลิกการป้องกันแผ่นงาน "]
[null,null,"หมายเหตุ: แผ่นงานใบแจ้งหนี้จะได้รับการป้องกันเพื่อหลีกเลี่ยงการเปลี่ยนแปลงโดยไม่ได้ตั้งใจ เนื่องจากข้อมูลส่วนใหญ่ในแผ่นงานนี้จะถูกดึงมาจากแผ่นงานอื่นๆ ทั้งหมดในเวิร์กบุ๊ก ตามที่ได้กล่าวไว้แล้ว "]
[null,"2.","กำหนดค่าส่วนหัวของใบแจ้งหนี้โดยการพิมพ์ชื่อบริษัท ที่อยู่ จังหวัด รหัสไปรษณีย์ ที่อยู่อีเมล เว็บไซต์ และอื่นๆ ที่ด้านล่างของใบแจ้งหนี้ (แถว 43) ให้ปรับเปลี่ยนขั้นตอนการชำระเงิน "]
[null,null,"ข้อสำคัญ! ห้ามปรับเปลี่ยนข้อมูลการเรียกเก็บเงินหรือใบแจ้งหนี้ เซลล์เหล่านี้ทั้งหมดมีสูตรที่จะอัปเดตใบแจ้งหนี้โดยอัตโนมัติ ตามที่ได้ระบุไว้ในส่วน เกี่ยวกับตัวติดตามใบแจ้งหนี้  "]
[null,"3.","(ไม่บังคับ) ปรับเปลี่ยนสีตลอดทั้งเวิร์กบุ๊ก: บนแท็บ เค้าโครงหน้ากระดาษ ในกลุ่ม ธีม ให้เลือก สี และเลือกชุดสีธีมอื่นจากแกลเลอรีสี "]
[null,"เคล็ดลับ: สร้างชุดสีธีมแบบกำหนดเองเพื่อให้ตรงกับการกำหนดแบรนด์ของบริษัทคุณ! ในการทำดังกล่าว บนแท็บ เค้าโครงหน้ากระดาษ ในกลุ่ม ธีม ให้เลือก สี แล้วเลือก กำหนดสีเอง สำหรับข้อมูลเพิ่มเติมเกี่ยวกับการสร้างชุดสีแบบกำหนดเอง ให้ดูหัวข้อวิธีใช้ต่อไปนี้: "]
[null,null,"กำหรดธีมของเอกสาร"]
[null,"4.","หลังจากที่คุณเปลี่ยนแปลงตามต้องการแล้ว ให้ย้อนกลับไปที่แผ่นงานใบแจ้งหนี้ จากนั้น บนแท็บ รีวิว ในกลุ่ม การเปลี่ยนแปลง ให้เลือก ป้องกันแผ่นงาน แล้วเลือก ตกลง เมื่อแผ่นงานใบแจ้งหนี้ได้รับการป้องกัน เซลล์ที่คุณสามารถเลือกได้จะมีเพียงเซลล์ที่มีลูกศรดรอปดาวน์หมายเลขใบแจ้งหนี้เท่านั้น"]
[null,"ฉันจะสร้างใบแจ้งหนี้ได้อย่างไร"]
[null,"1.","บนแผ่นงานลูกค้า ให้ป้อนข้อมูลของลูกค้า เช่น ชื่อบริษัทและที่อยู่ โปรดทราบว่าหมายเลขบริษัทเป็นรายการสำคัญ เนื่องจากเป็นตัวระบุเฉพาะของแต่ละบริษัทที่ใช้ในตัวติดตามใบแจ้งหนี้ นอกจากนี้ โปรดทราบว่าคุณจำเป็นต้องเพิ่มบริษัทเพียงครั้งเดียว สามารถข้ามขั้นตอนนี้ได้สำหรับใบแจ้งหนี้ใบต่อๆ มาของบริษัทเดิม "]
[null,null,"หมายเหตุ: ถ้าคุณกำหนดหมายเลขเดียวกันให้กับบริษัทหนึ่งแห่งขึ้นไปหรือป้อนชื่อบริษัทซ้ำกันมากกว่าหนึ่งครั้ง รายการจะเปลี่ยนเป็นสีแดงเพื่อแจ้งให้คุณทราบว่าซ้ำกัน "]
[null,"2.","บนแผ่นงานใบแจ้งหนี้ - หลัก ให้ป้อนข้อมูลหลักของใบแจ้งหนี้ เช่น หมายเลขใบแจ้งหนี้ วันที่ของใบแจ้งหนี้ และคำอธิบายโครงการ เช่นเดียวกับหมายเลขบริษัท หมายเลขใบแจ้งหนี้เป็นรายการสำคัญ เนื่องจากเป็นตัวระบุเฉพาะของใบแจ้งหนี้แต่ละใบที่ใช้ในตัวติดตามใบแจ้งหนี้ อีกรายการสำคัญหนึ่งก็คือบริษัท เมื่อคุณเลือกบริษัทจากรายการดรอปดาวน์ที่มีอยู่ จะเป็นการเชื่อมโยงใบแจ้งหนี้กับบริษัทดังกล่าว จากนั้น เมื่อคุณเลือกหมายเลขใบแจ้งหนี้บนแผ่นงานใบแจ้งหนี้ ข้อมูลของบริษัท อย่างเช่น ชื่อบริษัทและที่อยู่ จะกรอกลงในใบแจ้งหนี้โดยอัตโนมัติ"]
[null,null,"หมายเหตุ: ถ้าคุณกำหนดหมายเลขเดียวกันให้กับหลายใบแจ้งหนี้ รายการจะเปลี่ยนเป็นสีแดงเพื่อแจ้งให้คุณทราบว่าซ้ำกัน "]
[null,"3.","บนแผ่นงานรายละเอียดใบแจ้งหนี้ ให้ป้อนรายละเอียดของใบแจ้งหนี้ เช่น คำอธิบายสินค้า หมายเลขสินค้า ปริมาณสินค้า และราคาต่อหน่วย รายการดรอปดาวน์หมายเลขใบแจ้งหนี้จะมีรายการใบแจ้งหนี้ที่คุณป้อนลงในแผ่นงานใบแจ้งหนี้ - หลัก เพื่ออำนวยความสะดวกในการป้อนข้อมูล คล้ายกับหมายเลขบริษัทในขั้นตอนก่อนหน้านี้ หมายเลขใบแจ้งหนี้จะเชื่อมต่อรายการรายละเอียดกับใบแจ้งหนี้ที่ระบุ เมื่อคุณเลือกหมายเลขใบแจ้งหนี้บนแผ่นงานใบแจ้งหนี้จากรายการดรอปดาวน์หมายเลขใบแจ้งหนี้ รายการรายละเอียดใบแจ้งหนี้ที่เชื่อมโยงกับใบแจ้งหนี้ดังกล่าวจะปรากฏขึ้น"]
[null,null,"หมายเหตุ: คุณสามารถใส่รายการรายละเอียดได้สูงสุด 25 รายการต่อใบแจ้งหนี้ ถ้าคุณใส่เพิ่มมากกว่า 25 รายการ รายการที่เกี่ยวข้องทั้งหมดจะเปลี่ยนเป็นสีแดงเพื่อแจ้งให้คุณทราบว่าเกินขีดจำกัด ถ้าคุณมีรายการใบแจ้งหนี้มากกว่า 25 รายการ คุณจะต้องสร้างใบแจ้งหนี้ใบที่สอง "]
[null,"ฉันจะเพิ่มลูกค้า ใบแจ้งหนี้ และรายละเอียดใบแจ้งหนี้เพิ่มเติมได้อย่างไร"]
[null,"ข้อมูลสำหรับลูกค้า ใบแจ้งหนี้ และรายละเอียดใบแจ้งหนี้จะจัดเก็บอยู่ในตาราง Excel เมื่อคุณเพิ่มแถวใหม่ลงในตาราง แถวที่เพิ่มใหม่จะถูกจัดรูปแบบโดยอัตโนมัติและจะคัดลอกการคำนวณต่างๆ เมื่อต้องการเพิ่มแถวตารางใหม่ ให้ทำอย่างใดอย่างหนึ่งต่อไปนี้:"]
[null,"● ","ถ้าตารางไม่มีแถวผลรวม ให้เริ่มพิมพ์ด้านล่างตารางแล้วแถวจะขยายโดยอัตโนมัติเมื่อคุณกดปุ่ม Enter หรือ Tab"]
[null,"● ","วางตัวชี้เซลล์ในเซลล์สุดท้ายเหนือแถวผลรวม เช่น ในตารางใบแจ้งหนี้ในเซลล์หมายเหตุของใบแจ้งหนี้ใบสุดท้าย แล้วกด Tab"]
[null,"● ","บนแท็บ หน้าแรก ในกลุ่ม เซลล์ ให้เลือก แทรก แล้วเลือก แมรถแถวตารางด้านบน หรือ แมรถแถามลงดางด้านล่าง "]
[null,"● ","ที่มุมขวาล่างของตาราง ให้วางเมาส์บนจุดจับการปรับขนาดของตารางแล้วลากลงเพื่อเพิ่มจำนวนแถวในตารางที่พร้อมใช้งาน"]
[null,"ฉันจะวิเคราะห์รายละเอียดใบแจ้งหนี้ของฉันได้อย่างไร"]
[null,"ตามที่ได้ระบุไว้ในส่วนเกี่ยวกับตัวติดตามใบแจ้งหนี้ หลังจากที่คุณป้อนใบแจ้งหนี้หลายรายการแล้ว คุณสามารถดูรายการใบแจ้งหนี้ทั้งหมดของลูกค้า โครงการ ช่วงวันที่ และอื่นๆ ได้ตามต้องการ การวิเคราะห์ชนิดนี้สร้างขึ้นโดยใช้ตัวกรอง ซึ่งจะช่วยให้คุณจำกัดรายการข้อมูลให้แคบลงได้อย่างรวดเร็ว เมื่อต้องการเข้าถึงตัวกรองในตารางลูกค้า ใบแจ้งหนี้ หรือรายละเอียดใบแจ้งหนี้ ให้เลือกลูกศรดรอปดาวน์ที่อยู่ถัดจากชื่อเขตข้อมูลของตาราง บานหน้าต่างตัวกรองจะแสดงขึ้น และคุณจะเห็นตัวเลือกการกรองต่างๆ มากมาย ต่อไปนี้คือตัวอย่างการกรองที่จะช่วยให้คุณเริ่มต้นใช้งานได้:"]
[null,"● ","เมื่อต้องการดูจำนวนเงินทั้งหมดที่คุณเรียกเก็บจากลูกค้าเฉพาะราย: ในแผ่นงานใบแจ้งหนี้ - หลัก ให้เลือกลูกศรดรอปดาวน์จากทางด้านขวาของเขตข้อมูลหมายเลขบริษัท ในบานหน้าต่างตัวกรอง ให้คลิก เลือกทั้งหมด เพื่อยกเลิกการเลือกทุกบริษัท เลือกบริษัทที่ต้องการ แล้วเลือก ตกลง "]
[null,null,"เคล็ดลับ: ในบานหน้าต่าง ตัวกรอง คุณสามารถพิมพ์ชื่อลูกค้าในกล่องข้อความ ค้นหา เพื่อค้นหารายการที่พร้อมใช้งานอย่างรวดเร็ว"]
[null,"● ","เมื่อต้องการดูใบแจ้งหนี้ทั้งหมดของลูกค้าและโครงการที่ต้องการ: เริ่มต้นด้วยการกรองลูกค้าที่คุณต้องการโดยใช้ขั้นตอนที่อธิบายไว้ในตัวอย่างก่อนหน้านี้ จากนั้น ให้เลือกลูกศรดรอปดาวน์จากทางด้านขวาของหมายเลขโครงการ ในบานหน้าต่างตัวกรอง ให้เลือกโครงการที่ต้องการ แล้วเลือก ตกลง "]
[null,"● ","เมื่อต้องการดูใบแจ้งหนี้ทั้งหมดของเดือนที่แล้ว: ในแผ่นงานใบแจ้งหนี้ - หลัก ให้เลือกลูกศรดรอปดาวน์จากทางด้านขวาของเขตข้อมูลวันที่ของใบแจ้งหนี้ ชี้ไปที่ตัวกรองวันที่ แล้วเลือกเดือนสุดท้าย"]
[null,"● ","เมื่อต้องการดูลูกค้าทั้งหมดที่มีรหัสพื้นที่เดียวกัน: ในแผ่นงานลูกค้า ให้เลือกลูกศรดรอปดาวน์จากทางด้านขวาของเขตข้อมูลโทรศัพท์ ในบานหน้าต่างตัวกรอง ให้คลิกในกล่องข้อความค้นหา พิมพ์รหัสพื้นที่ แล้วเลือก ตกลง "]
[null,"เคล็ดลับตัวกรอง"]
[null,"● ","ถ้าตารางมีแถวผลรวม เช่น ลูกค้าและใบแจ้งหนี้ จะแสดงเฉพาะผลรวมที่คำนวณของรายการที่กรองเท่านั้น"]
[null,"● ","ใช้ตัวกรองหลายตัวกับเขตข้อมูลเดียวหรือหลายเขตข้อมูลเพื่อปรับปรุงผลลัพธ์ของคุณ"]
[null,"● ","เมื่อต้องการล้างตัวกรองตัวเดียว ให้เลือกลูกศรดรอปดาวน์ของคอลัมน์ที่กรองก่อนหน้านี้ แล้วเลือก ล้างตัวกรองออกาก <ชื่อเขตข้อมูล>"]
[null,"● ","เมื่อต้องการล้างตัวกรองหลายตัวพร้อมๆ กัน ให้วางตัวชี้เซลล์ในตาราง จากนั้น บนแท็บ หน้าแรก ในกลุ่ม การแก้ไข ให้เลือก เรียงลำดับและกรอง แล้วเลือก ล้าง"]